bitfinex-derivatives/quotes_BTCF0:USTF0_20210707
["timestamp","ask_amount","ask_price","bid_price","bid_amount"]
[1625688115321,0.2542209,34569.0,34568.0,1.02322576]
[1625688116298,0.2542209,34569.0,34568.0,1.02222576]
[1625688117656,0.2542209,34569.0,34568.0,1.01752093]
[1625688118475,0.2542209,34569.0,34568.0,1.02222563]
[1625688118777,0.24057544,34569.0,34568.0,1.02222563]
[1625688120804,0.24057544,34569.0,34568.0,0.0047047]
[1625688121103,0.24057544,34569.0,34567.0,1.01775016]
[1625688121255,0.25422136,34569.0,34568.0,1.01774108]
[1625688121855,0.25422136,34569.0,34568.0,1.02244582]
[1625688124558,0.25422136,34569.0,34568.0,2.21030627]
[1625688124785,0.50380742,34569.0,34568.0,2.21030627]
[1625688125084,0.75302492,34569.0,34568.0,2.21030627]
[1625688125236,0.8362546,34569.0,34568.0,2.21030627]
[1625688125383,0.8362546,34569.0,34568.0,2.45088171]
[1625688125683,0.50378636,34569.0,34568.0,3.80842234]
[1625688125984,0.25422136,34569.0,34568.0,3.80842234]
[1625688126959,0.08330898,34571.0,34568.0,3.80842234]
[1625688127116,0.50022502,34572.0,34570.0,3.56426997]
[1625688127117,0.33373706,34572.0,34570.0,3.56426997]
[1625688127259,0.001,34572.0,34570.0,5.09181424]
[1625688127415,0.001,34572.0,34571.0,5.81814716]
[1625688129367,0.002,34577.0,34571.0,5.81814716]
[1625688129516,0.99958796,34579.0,34576.0,0.24057544]
[1625688129667,0.99958796,34579.0,34576.0,4.02023391]
[1625688129818,1.16598881,34581.0,34578.0,3.56564218]
[1625688129970,1.24377433,34582.0,34578.0,3.56564218]
[1625688130119,1.24377433,34582.0,34580.0,3.56559109]
[1625688130421,1.24377433,34582.0,34581.0,6.74317648]
[1625688130722,1.25741599,34582.0,34581.0,6.74317648]
[1625688131406,1.25741599,34582.0,34581.0,6.98375192]
[1625688131548,0.2572171,34582.0,34581.0,6.98375192]
[1625688131844,0.24357544,34582.0,34581.0,8.34214877]
[1625688132295,0.24057544,34582.0,34581.0,8.34214877]
[1625688132595,0.24057544,34582.0,34581.0,6.98375192]
[1625688132974,1.24135768,34582.0,34581.0,6.98375192]
[1625688133346,1.90859143,34582.0,34581.0,7.66296558]
[1625688134698,0.90780919,34582.0,34581.0,7.66296558]
[1625688138691,0.90780919,34582.0,34581.0,6.47443209]
[1625688138980,1.90709695,34582.0,34581.0,6.47443209]
[1625688139432,0.90780919,34582.0,34581.0,7.66204915]
[1625688141011,0.90780919,34582.0,34581.0,6.47443209]
[1625688141845,0.90780919,34582.0,34581.0,7.6617862]
[1625688142066,0.24057544,34582.0,34581.0,7.6617862]
[1625688142814,0.90662995,34582.0,34581.0,6.47443209]
[1625688144016,0.24057544,34582.0,34581.0,7.66141816]
[1625688145898,0.24057544,34582.0,34581.0,6.47443209]
[1625688146646,0.24057544,34582.0,34581.0,5.4556891]
[1625688146647,1.91811744,34582.0,34581.0,5.4556891]
[1625688146944,1.91811744,34582.0,34581.0,4.77647544]
[1625688147102,6.86391744,34582.0,34581.0,4.77647544]
[1625688148296,6.86391744,34582.0,34581.0,5.45458389]
[1625688148975,5.86559553,34582.0,34581.0,5.45458389]
[1625688149272,5.86559553,34582.0,34581.0,6.47165528]
[1625688149572,0.25419214,34582.0,34581.0,6.47165528]
[1625688149722,0.25419214,34582.0,34581.0,7.66281565]
[1625688150640,4.75339214,34582.0,34581.0,7.65810532]
[1625688150775,4.75339214,34582.0,34581.0,6.47165528]
[1625688152278,4.75339214,34582.0,34581.0,4.77647544]
[1625688152576,4.75339214,34582.0,34581.0,6.47120159]
[1625688152577,0.25419214,34582.0,34581.0,6.47120159]
[1625688155661,0.25419214,34582.0,34581.0,6.4759146]
[1625688160306,0.25419214,34582.0,34581.0,1.9400146]
[1625688163310,0.25419214,34582.0,34581.0,2.44816405]
[1625688165342,0.75209492,34582.0,34581.0,1.43132836]
[1625688165488,0.25419214,34582.0,34581.0,1.43132836]
[1625688165786,0.75211805,34582.0,34581.0,1.43132836]
[1625688166461,1.41578619,34582.0,34581.0,0.7534379]
[1625688166987,0.25419214,34582.0,34581.0,1.43105811]
[1625688167361,0.25419214,34582.0,34581.0,2.4474777]
[1625688168492,0.25419214,34582.0,34581.0,0.24528845]
[1625688168794,0.25419214,34582.0,34581.0,2.44762096]
[1625688170067,0.25419214,34582.0,34581.0,7.31062096]
[1625688174282,0.66503009,34584.0,34581.0,7.31062096]
[1625688174429,0.49711287,34585.0,34581.0,8.49715888]
[1625688174581,0.0135923,34583.0,34581.0,8.99715888]
[1625688174732,0.0135923,34583.0,34581.0,5.60828845]
[1625688174882,0.01360348,34584.0,34582.0,2.54276278]
[1625688175031,0.01360348,34584.0,34582.0,2.84031278]
[1625688175181,0.002,34589.0,34583.0,4.06811133]
[1625688175329,0.002,34589.0,34583.0,4.07282599]
[1625688175630,0.0136024,34588.0,34584.0,0.00471447]
[1625688175796,0.0136024,34588.0,34585.0,1.52547054]
[1625688175931,0.0136024,34588.0,34587.0,5.15352632]
[1625688176383,0.002,34589.0,34587.0,7.70075211]
[1625688176682,0.002,34589.0,34588.0,0.00471465]
[1625688176831,0.002,34589.0,34588.0,2.54795115]
[1625688177510,0.01560264,34589.0,34588.0,2.54795115]
[1625688177814,0.002,34589.0,34588.0,2.54795115]
[1625688178113,0.0156027,34589.0,34588.0,2.54795115]
[1625688178262,0.002,34589.0,34588.0,2.54795115]
[1625688178562,0.002,34589.0,34588.0,2.5432365]
[1625688179164,0.01562645,34589.0,34588.0,2.5432365]
[1625688179467,0.002,34589.0,34588.0,2.5432365]
[1625688179615,0.01562667,34589.0,34588.0,1.1868437]
[1625688182849,0.01562667,34589.0,34588.0,2.54434508]
[1625688183143,0.002,34589.0,34588.0,1.1868437]
[1625688183295,0.002,34589.0,34588.0,2.54402256]
[1625688184498,0.01562662,34589.0,34588.0,2.54402256]
[1625688184803,0.002,34589.0,34588.0,2.54402256]
[1625688185547,0.01562662,34589.0,34588.0,2.54402256]
[1625688186148,0.002,34589.0,34588.0,2.54402256]
[1625688186298,0.001,34591.0,34588.0,2.54402256]
[1625688186599,0.001,34591.0,34590.0,4.07445107]
[1625688186747,0.001,34591.0,34590.0,4.30740107]
[1625688186900,0.001,34591.0,34590.0,4.31210585]
[1625688188022,0.001,34591.0,34590.0,4.54797651]
[1625688188323,0.001,34591.0,34590.0,3.02005736]
[1625688188548,0.001,34591.0,34590.0,4.54727055]
[1625688188850,0.001,34591.0,34590.0,3.02005736]
[1625688189007,0.001,34591.0,34590.0,2.78710736]
[1625688189300,0.001,34591.0,34590.0,1.428957]
[1625688189450,0.01462667,34591.0,34590.0,1.428957]
[1625688189602,0.01462667,34591.0,34590.0,0.24057544]
[1625688190052,1.41718758,34591.0,34590.0,0.24057544]
[1625688192379,1.68348758,34591.0,34590.0,0.24057544]
[1625688192979,1.68348758,34591.0,34590.0,5.29807544]
[1625688193732,0.25520211,34591.0,34590.0,5.29807544]
[1625688194329,0.01462667,34591.0,34590.0,5.29807544]
[1625688194780,0.01462667,34591.0,34590.0,5.53229544]
[1625688194932,0.01462667,34591.0,34590.0,6.71988362]
[1625688195094,0.001,34591.0,34590.0,6.71988362]
[1625688195236,0.001,34591.0,34590.0,8.07709207]
[1625688195394,0.2929,34595.0,34590.0,8.07709207]
[1625688195395,0.001,34593.0,34590.0,8.07709207]
[1625688195681,0.001,34593.0,34592.0,1.18728298]
[1625688196130,0.001,34593.0,34592.0,1.42785842]
[1625688196430,0.01461109,34593.0,34592.0,1.42785842]
[1625688197257,0.01461109,34593.0,34592.0,0.24057544]
[1625688199058,0.01461109,34593.0,34592.0,1.4277229]
[1625688199364,0.001,34593.0,34592.0,1.4277229]
[1625688199809,0.001,34593.0,34592.0,2.78421282]
[1625688200418,0.01458741,34593.0,34592.0,2.78421282]
[1625688200582,0.01458741,34593.0,34592.0,1.4277229]
[1625688200711,0.01458741,34593.0,34592.0,0.24057544]
[1625688201688,0.30898741,34593.0,34592.0,0.24057544]
[1625688202142,1.71469887,34593.0,34592.0,0.24057544]
[1625688202438,6.54474073,34593.0,34592.0,0.24057544]
[1625688204167,8.04104484,34593.0,34592.0,0.24057544]
[1625688204464,8.07510971,34593.0,34592.0,0.24057544]
[1625688204615,9.07262554,34593.0,34592.0,0.24057544]
[1625688206569,9.03856067,34593.0,34592.0,0.24057544]
[1625688207321,9.03756067,34593.0,34592.0,0.24057544]
[1625688221513,9.07162741,34593.0,34592.0,0.24057544]
[1625688224442,9.03756067,34593.0,34592.0,0.24057544]
[1625688224744,9.0716273,34593.0,34592.0,0.24057544]
[1625688225791,9.03756067,34593.0,34592.0,0.24057544]
[1625688226093,9.07162656,34593.0,34592.0,0.24057544]
[1625688234735,9.73671751,34593.0,34592.0,0.24057544]
[1625688240364,9.73671751,34593.0,34588.0,0.001]
[1625688240665,5.87260181,34589.0,34588.0,0.001]
[1625688241114,5.92028884,34589.0,34588.0,0.001]
[1625688242546,7.57030237,34589.0,34588.0,0.001]
[1625688242695,7.81087781,34589.0,34588.0,0.001]
[1625688243372,7.81087781,34589.0,34583.0,0.002]
[1625688243671,5.60398932,34584.0,34583.0,0.002]
[1625688243822,5.85279932,34584.0,34583.0,0.002]
[1625688243971,5.9004925,34584.0,34583.0,0.002]
[1625688244347,4.41713688,34584.0,34583.0,0.002]
[1625688244805,4.65771232,34584.0,34583.0,0.002]
[1625688245776,6.14001301,34584.0,34583.0,0.002]
[1625688246378,6.14001301,34584.0,34579.0,0.001]
[1625688246678,4.59627258,34580.0,34579.0,0.001]
[1625688247130,4.60989196,34580.0,34579.0,0.001]
[1625688249908,6.09072136,34580.0,34579.0,0.001]
[1625688251184,4.60989196,34580.0,34579.0,0.001]
[1625688251488,6.08979561,34580.0,34579.0,0.001]
[1625688255242,4.60989196,34580.0,34579.0,0.001]
[1625688258400,4.60989196,34580.0,34575.0,0.24157544]
[1625688258550,2.793785,34576.0,34575.0,0.24157544]
[1625688258698,3.105345,34576.0,34575.0,0.24157544]
[1625688258848,3.34592044,34576.0,34575.0,0.24157544]
[1625688258999,3.35954346,34576.0,34575.0,0.24157544]
[1625688261553,4.67415802,34576.0,34575.0,0.24157544]
[1625688262528,3.35954346,34576.0,34575.0,0.24157544]
[1625688262677,3.04798346,34576.0,34575.0,0.24157544]
[1625688263279,6.90798346,34576.0,34575.0,0.24157544]
[1625688264181,5.75764006,34576.0,34575.0,0.24157544]
[1625688264637,6.25044866,34576.0,34575.0,0.24157544]
[1625688264928,6.25044866,34576.0,34575.0,0.51548544]
[1625688265228,1.40441656,34576.0,34575.0,0.51548544]
[1625688265385,1.06217787,34576.0,34575.0,1.36268394]
[1625688265683,0.56936927,34576.0,34575.0,1.36268394]
[1625688265836,0.32884784,34577.0,34575.0,1.70151733]
[1625688266128,0.98621484,34579.0,34576.0,2.20250676]
[1625688266129,0.32904681,34579.0,34576.0,2.20250676]
[1625688266438,1.06317571,34580.0,34578.0,1.18595834]
[1625688266579,0.56968772,34580.0,34579.0,0.50826109]
[1625688266882,0.56968772,34580.0,34579.0,5.57836109]
[1625688267028,0.58331321,34580.0,34579.0,5.81893653]
[1625688267178,0.58331321,34580.0,34579.0,6.15777976]
[1625688267335,1.07676123,34580.0,34579.0,6.15777976]
[1625688267628,1.07676123,34580.0,34579.0,5.81893653]
[1625688268753,1.40542551,34580.0,34579.0,5.64957484]
[1625688269053,2.39158556,34580.0,34579.0,5.31067544]
[1625688271453,7.05098556,34580.0,34579.0,5.31067544]
[1625688272806,7.05098556,34580.0,34579.0,0.24057544]
[1625688273107,7.30813556,34580.0,34579.0,0.24057544]
[1625688273258,8.45707776,34580.0,34579.0,0.24057544]
[1625688273857,9.76973205,34580.0,34579.0,0.24057544]
[1625688274607,9.80381417,34580.0,34579.0,0.24057544]
[1625688277538,11.28164007,34580.0,34579.0,0.24057544]
[1625688278965,11.04106463,34580.0,34575.0,0.001]
[1625688279267,4.59939125,34576.0,34575.0,0.001]
[1625688279573,4.85359517,34576.0,34575.0,0.24157544]
[1625688280166,3.53955377,34576.0,34575.0,0.24157544]
[1625688280322,8.19235377,34576.0,34575.0,0.24157544]
[1625688280770,3.53955377,34576.0,34575.0,0.24157544]
[1625688281066,2.38974702,34576.0,34575.0,0.41110023]
[1625688281369,2.38974702,34576.0,34575.0,4.87864181]
[1625688281370,1.40417491,34576.0,34575.0,4.87864181]
[1625688281515,1.40417491,34576.0,34575.0,4.87863512]
[1625688281819,0.74707209,34576.0,34575.0,5.55670377]
[1625688282266,1.07623344,34576.0,34575.0,5.55670377]
[1625688282954,0.74807986,34576.0,34575.0,5.55670377]
[1625688283995,0.58336527,34576.0,34575.0,5.55670377]
[1625688284297,1.07805797,34576.0,34575.0,6.57398797]
[1625688285268,1.07805797,34576.0,34575.0,6.57298797]
[1625688286322,1.07805797,34576.0,34575.0,2.44448797]
[1625688287523,0.74829006,34576.0,34575.0,2.44448797]
[1625688288280,1.40718565,34576.0,34575.0,2.44448797]
[1625688288423,1.74913565,34576.0,34575.0,2.44448797]
[1625688288949,1.74913565,34576.0,34575.0,1.42720377]
[1625688289399,3.88921738,34576.0,34575.0,0.74960614]
[1625688289702,3.88921738,34576.0,34575.0,0.41025234]
[1625688289850,3.88921738,34576.0,34575.0,0.24057544]
[1625688290305,5.2065633,34576.0,34575.0,0.24057544]
[1625688293160,3.88921738,34576.0,34575.0,0.74983909]
[1625688293459,9.07011738,34576.0,34575.0,0.74981789]
[1625688293608,9.07011738,34576.0,34575.0,1.42880093]
[1625688293910,7.91777834,34576.0,34575.0,1.42880093]
[1625688294364,10.38930622,34576.0,34575.0,0.74997316]
[1625688294660,10.38930622,34576.0,34575.0,0.24057544]
[1625688294961,10.14873078,34576.0,34574.0,0.50939942]
[1625688295260,0.01362336,34575.0,34574.0,0.50939942]
[1625688295412,4.62805968,34575.0,34574.0,0.84915151]
[1625688295561,4.62805968,34575.0,34574.0,0.50945287]
[1625688295937,4.86863512,34575.0,34574.0,0.99060375]
[1625688297438,4.86863512,34575.0,34574.0,0.99091025]
[1625688297740,4.86863512,34575.0,34574.0,1.67058744]
[1625688298039,4.86863512,34575.0,34574.0,5.86758744]
[1625688299015,3.55029536,34575.0,34574.0,6.88753544]
[1625688300217,3.55029536,34575.0,34574.0,2.69053544]
[1625688300518,4.86986216,34575.0,34574.0,2.69053544]
[1625688300666,4.86986216,34575.0,34574.0,1.67058744]
[1625688301116,4.86986216,34575.0,34574.0,0.99091025]
[1625688301416,4.86986216,34575.0,34574.0,0.82115196]
[1625688301566,4.86986216,34575.0,34574.0,0.99115882]
[1625688303446,4.86986216,34575.0,34574.0,1.33117232]
[1625688303747,4.86986216,34575.0,34574.0,0.99115872]
[1625688304649,4.86986216,34575.0,34574.0,1.33117426]
[1625688307805,4.86986216,34575.0,34574.0,1.67128174]
[1625688310736,4.86986216,34575.0,34574.0,7.70607292]
[1625688311038,3.55029536,34575.0,34574.0,8.89624037]
[1625688311188,2.39672747,34575.0,34574.0,8.89624037]
[1625688311490,3.55573541,34575.0,34574.0,8.89624037]
[1625688311640,3.55573541,34575.0,34574.0,7.70607292]
[1625688312391,3.55573541,34575.0,34574.0,8.8962352]
[1625688317571,3.79107541,34575.0,34574.0,8.8962352]
[1625688320198,3.79107541,34575.0,34574.0,3.8816352]
[1625688320348,5.11737348,34575.0,34574.0,2.69147292]
[1625688323216,5.11737348,34575.0,34574.0,1.67128174]
[1625688323429,5.11737348,34575.0,34574.0,2.69172509]
[1625688325005,4.87679804,34575.0,34574.0,2.21057421]
[1625688326132,4.91088521,34575.0,34574.0,2.21057421]
[1625688326284,4.91088521,34575.0,34574.0,0.85018534]
[1625688326433,6.40216845,34575.0,34574.0,0.51024341]
[1625688326583,6.64274389,34575.0,34574.0,0.75081885]
[1625688326743,5.15146065,34575.0,34574.0,1.09097948]
[1625688327048,5.15146065,34575.0,34574.0,0.85040404]
[1625688327185,6.64270492,34575.0,34574.0,0.51024461]
[1625688327495,6.64270492,34575.0,34574.0,0.25513298]
[1625688328095,6.64270492,34575.0,34574.0,0.08505141]
[1625688328237,6.64270492,34575.0,34573.0,0.59536253]
[1625688328541,6.37027576,34574.0,34573.0,0.59536253]
[1625688328689,6.41798827,34574.0,34573.0,0.59536253]
[1625688331017,6.41798827,34574.0,34571.0,0.59645316]
[1625688331316,6.12095914,34572.0,34571.0,0.001]
[1625688331773,6.16867567,34572.0,34571.0,0.001]
[1625688332666,6.40925111,34572.0,34571.0,0.001]
[1625688336346,6.40925111,34572.0,34567.0,0.25603078]
[1625688336496,6.40925111,34572.0,34567.0,0.08603641]
[1625688336646,6.40925111,34572.0,34567.0,0.001]
[1625688336647,1.80173165,34568.0,34567.0,0.001]
[1625688336799,6.8228639,34568.0,34567.0,0.001]
[1625688337098,6.83648979,34568.0,34567.0,0.001]
[1625688337252,8.51931828,34568.0,34562.0,0.002]
[1625688337550,6.10005707,34563.0,34562.0,0.002]
[1625688337849,7.11368452,34563.0,34562.0,0.002]
[1625688338155,8.79468346,34563.0,34562.0,0.002]
[1625688338301,7.14778647,34563.0,34562.0,0.002]
[1625688338599,7.5948354,34563.0,34562.0,0.002]
[1625688339206,6.5948354,34563.0,34562.0,0.002]
[1625688339351,7.5948354,34563.0,34562.0,0.002]
[1625688340402,6.5948354,34563.0,34562.0,0.002]
[1625688340852,5.11111347,34563.0,34562.0,0.002]
[1625688342130,3.77860377,34563.0,34562.0,0.002]
[1625688342579,2.6245612,34563.0,34562.0,0.002]
[1625688342728,2.6245612,34563.0,34562.0,0.08683132]
[1625688343036,2.6245612,34563.0,34562.0,0.29782132]
[1625688343187,2.6245612,34563.0,34562.0,5.14062132]
[1625688343930,2.6245612,34563.0,34562.0,5.31028335]
[1625688344460,2.6245612,34563.0,34562.0,5.14062132]
[1625688345131,2.6245612,34563.0,34562.0,5.05579]
[1625688345285,2.6245612,34563.0,34562.0,5.05379]
[1625688345431,2.6245612,34563.0,34562.0,5.13861551]
[1625688346257,2.6245612,34563.0,34562.0,5.30825323]
[1625688346559,2.6245612,34563.0,34562.0,5.13861551]
[1625688347156,2.6245612,34563.0,34562.0,5.30825222]
[1625688347832,2.6245612,34563.0,34562.0,5.13861551]
[1625688348731,2.6245612,34563.0,34562.0,5.30823826]
[1625688349120,2.6245612,34563.0,34562.0,5.13861551]
[1625688350235,2.6245612,34563.0,34562.0,5.05379]
[1625688350761,2.6245612,34563.0,34562.0,5.13859125]
[1625688350987,2.6245612,34563.0,34562.0,5.05379]
[1625688351440,2.63819136,34563.0,34562.0,5.05379]
[1625688351963,2.6245612,34563.0,34562.0,5.05379]
[1625688352564,2.63819134,34563.0,34562.0,5.05379]
[1625688352866,3.7903778,34563.0,34562.0,5.05379]
[1625688357145,2.63819134,34563.0,34562.0,5.05379]
[1625688358493,1.64898844,34563.0,34562.0,5.13855332]
[1625688358644,1.64898844,34563.0,34562.0,5.30808102]
[1625688358957,1.64898844,34563.0,34562.0,5.13855332]
[1625688361427,2.63660017,34563.0,34562.0,5.05379]
[1625688365554,3.78787631,34563.0,34562.0,5.05379]
[1625688368793,3.82197753,34563.0,34562.0,5.05379]
[1625688370590,5.13627347,34563.0,34562.0,5.05379]
[1625688371717,3.82197753,34563.0,34562.0,5.05379]
[1625688375176,5.1373514,34563.0,34562.0,5.05379]
[1625688378261,5.1373514,34563.0,34562.0,0.21099]
[1625688378408,5.1373514,34563.0,34558.0,0.32637589]
[1625688378568,2.13873459,34559.0,34558.0,0.24157544]
[1625688378786,2.37931003,34559.0,34558.0,0.24157544]
[1625688379087,7.20008123,34559.0,34558.0,0.001]
[1625688379609,7.16597926,34559.0,34558.0,0.001]
[1625688379986,7.20008165,34559.0,34558.0,0.001]
[1625688380282,7.16597926,34559.0,34558.0,0.001]
[1625688380433,8.51581976,34559.0,34558.0,0.001]
[1625688384192,8.4817173,34559.0,34558.0,0.001]
[1625688384336,8.51582162,34559.0,34558.0,0.001]
[1625688384638,9.51582162,34559.0,34558.0,0.001]
[1625688384798,10.99423482,34559.0,34558.0,0.001]
[1625688385087,12.63548151,34559.0,34556.0,0.08]
[1625688385393,6.07330919,34557.0,34556.0,0.08]
[1625688385539,6.38804919,34557.0,34556.0,0.08]
[1625688385686,6.4357962,34557.0,34556.0,0.08]
[1625688385839,6.40168536,34557.0,34556.0,0.08]
[1625688386138,7.40168536,34557.0,34556.0,0.08]
[1625688386437,6.40168536,34557.0,34556.0,0.08]
[1625688386888,6.6422608,34557.0,34556.0,0.08]
[1625688388166,8.2836643,34557.0,34556.0,0.08]
[1625688388317,6.6422608,34557.0,34556.0,0.08]
[1625688388766,8.28571845,34557.0,34556.0,0.08]
[1625688389217,7.6422608,34557.0,34556.0,0.08]
[1625688390572,6.6422608,34557.0,34556.0,0.08]
[1625688390721,7.6422608,34557.0,34556.0,0.08]
[1625688390870,6.6422608,34557.0,34556.0,0.08]
[1625688394476,6.67637717,34557.0,34556.0,0.08]
[1625688394627,8.31874307,34557.0,34556.0,0.08]
[1625688394775,9.31874307,34557.0,34556.0,0.08]
[1625688396051,9.31874307,34557.0,34554.0,0.001]
[1625688396352,6.0738565,34555.0,34547.0,0.002]
[1625688396653,4.59589759,34548.0,34547.0,0.002]
[1625688396803,4.83089759,34548.0,34547.0,0.002]
[1625688396957,5.31204847,34548.0,34547.0,0.002]
[1625688397255,5.3256918,34548.0,34547.0,0.002]
[1625688406419,6.82968526,34548.0,34542.0,0.003]
[1625688406568,7.82968526,34548.0,34542.0,0.003]
[1625688406719,4.57187124,34543.0,34542.0,0.003]
[1625688407018,5.06666928,34543.0,34542.0,0.003]
[1625688408220,5.06666928,34543.0,34542.0,0.001]
[1625688409796,6.06666928,34543.0,34542.0,0.001]
[1625688410997,7.53398233,34543.0,34542.0,0.001]
[1625688411145,7.56811182,34543.0,34542.0,0.001]
[1625688412199,7.56811182,34543.0,34539.0,0.17]
[1625688412500,6.02122059,34540.0,34539.0,0.17]
[1625688412661,6.27784059,34540.0,34539.0,0.17]
[1625688412949,6.3256221,34540.0,34539.0,0.17]
[1625688413100,6.80677298,34540.0,34539.0,0.17]
[1625688413251,5.30809447,34540.0,34539.0,0.17]
[1625688414601,6.77206612,34540.0,34539.0,0.17]
[1625688414901,5.30809447,34540.0,34539.0,0.17]
[1625688415504,5.30809447,34540.0,34537.0,0.002]
[1625688415812,3.25433286,34538.0,34537.0,0.002]
[1625688416256,3.09798508,34538.0,34537.0,0.002]
[1625688417305,3.09798508,34538.0,34535.0,0.24057544]
[1625688417456,2.12903365,34538.0,34537.0,4.0968]
[1625688417606,1.15276633,34538.0,34537.0,4.30754]
[1625688417834,0.82765192,34538.0,34537.0,4.30754]
[1625688418452,0.82765192,34538.0,34537.0,0.21074]
[1625688418583,0.50244733,34538.0,34537.0,0.21074]
[1625688419033,0.8281375,34538.0,34537.0,0.21074]
[1625688419495,0.5023528,34538.0,34537.0,0.21074]
[1625688419633,0.5023528,34538.0,34535.0,0.24057544]
[1625688419936,0.09523091,34537.0,34535.0,0.24057544]
[1625688420459,0.08158083,34537.0,34535.0,0.24057544]
[1625688420759,0.01365009,34536.0,34535.0,0.24057544]
[1625688421210,0.09520515,34536.0,34535.0,0.24057544]
[1625688421364,0.82450258,34536.0,34535.0,0.24057544]
[1625688421661,1.39366168,34536.0,34535.0,0.24057544]
[1625688422713,1.06827034,34536.0,34535.0,0.24057544]
[1625688423012,0.74257856,34536.0,34535.0,0.24057544]
[1625688423162,1.69964989,34536.0,34535.0,0.24057544]
[1625688424441,1.04849856,34536.0,34535.0,0.24057544]
[1625688424741,1.6996075,34536.0,34535.0,0.24057544]
[1625688424894,1.04849856,34536.0,34535.0,0.24057544]
[1625688425040,0.74257856,34536.0,34535.0,0.24057544]
[1625688425341,0.74297543,34536.0,34535.0,0.24057544]
[1625688425641,0.58000453,34536.0,34535.0,0.24057544]
[1625688425866,0.74297736,34536.0,34535.0,0.24057544]
[1625688427294,1.06868087,34536.0,34535.0,0.24057544]
[1625688428946,0.58000453,34536.0,34535.0,0.24057544]
[1625688429168,1.06871729,34536.0,34535.0,0.24057544]
[1625688431423,0.74293829,34536.0,34535.0,0.24057544]
[1625688432173,1.06841386,34536.0,34535.0,0.24057544]
[1625688432926,1.39320598,34536.0,34535.0,0.24057544]
[1625688435487,2.36929259,34536.0,34535.0,0.24057544]
[1625688436004,2.40341898,34536.0,34535.0,0.24057544]
[1625688436304,1.42733237,34536.0,34535.0,0.24057544]
[1625688436453,1.39320598,34536.0,34535.0,0.24057544]
[1625688437357,2.36995207,34536.0,34535.0,0.24057544]
[1625688437657,2.40407823,34536.0,34535.0,0.24057544]
[1625688440435,3.54425929,34536.0,34535.0,0.24057544]
[1625688447204,4.84996567,34536.0,34535.0,0.24057544]
[1625688449603,2.60849023,34536.0,34535.0,0.47981544]
[1625688449755,2.57436407,34536.0,34535.0,0.47981544]
[1625688449903,1.26865769,34536.0,34535.0,0.47981544]
[1625688450053,0.001,34537.0,34535.0,0.48454811]
[1625688450354,0.24567174,34536.0,34535.0,1.67356786]
[1625688450504,0.24567174,34536.0,34535.0,1.66883519]
[1625688450654,0.32828971,34537.0,34535.0,1.66883519]
[1625688450655,0.5740232,34537.0,34535.0,1.66883519]
[1625688450813,0.5740232,34537.0,34535.0,1.67356745]
[1625688451254,0.5740232,34537.0,34536.0,0.00473222]
[1625688451556,0.5740232,34537.0,34536.0,0.24530766]
[1625688451780,0.58763504,34537.0,34536.0,0.24057544]
[1625688452230,0.34190155,34537.0,34536.0,0.24057544]
[1625688453284,0.01461184,34537.0,34536.0,0.24057544]
[1625688454040,1.16094597,34537.0,34536.0,0.83534701]
[1625688454190,2.47152479,34537.0,34536.0,0.49547754]
[1625688454635,2.47152479,34537.0,34536.0,0.8355397]
[1625688455086,2.47152479,34537.0,34536.0,0.49547754]
[1625688455387,2.47152479,34537.0,34536.0,0.83553718]
[1625688455537,2.71210023,34537.0,34536.0,0.83553718]
[1625688455692,1.40152141,34537.0,34536.0,0.75056981]
[1625688456289,1.40052141,34537.0,34536.0,0.75056981]
[1625688456443,3.00028034,34537.0,34536.0,0.58063508]
[1625688457266,3.00028034,34537.0,34536.0,0.75071556]
[1625688457569,3.00028034,34537.0,34536.0,0.58063508]
[1625688458103,3.00028034,34537.0,34536.0,0.83575544]
[1625688458541,3.00028034,34537.0,34536.0,0.75071532]
[1625688458845,3.00028034,34537.0,34536.0,0.24057544]
[1625688459446,3.00028034,34537.0,34536.0,0.58081607]
[1625688459836,1.68890141,34537.0,34536.0,0.24057544]
[1625688459970,1.40052141,34537.0,34536.0,0.24057544]
[1625688460125,2.71230134,34537.0,34536.0,0.24057544]
[1625688464772,2.92535134,34537.0,34536.0,0.24057544]
[1625688468229,2.71230134,34537.0,34536.0,0.24057544]
[1625688475886,2.74642346,34537.0,34536.0,0.24057544]
[1625688478596,2.74642346,34537.0,34533.0,1.19225302]
[1625688478891,2.4635021,34534.0,34531.0,1.43413654]
[1625688479041,2.0522498,34532.0,34531.0,0.24157544]
[1625688479191,5.9279498,34532.0,34531.0,0.24157544]
[1625688479344,5.9279498,34532.0,34531.0,0.58227876]
[1625688479493,5.9756945,34532.0,34531.0,0.58227876]
[1625688479640,7.45199669,34532.0,34531.0,0.75263257]
[1625688479804,8.88313219,34532.0,34531.0,0.51205713]
[1625688480318,8.91726084,34532.0,34531.0,0.17135381]
[1625688480543,8.91726084,34532.0,34531.0,0.001]
[1625688481523,8.91726084,34532.0,34531.0,0.17135966]
[1625688481898,8.91726084,34532.0,34531.0,0.001]
[1625688485367,7.40683,34532.0,34531.0,0.51185248]
[1625688486328,7.40683,34532.0,34531.0,0.51085248]
[1625688488133,8.88392398,34532.0,34530.0,0.1702384]
[1625688488286,8.88392398,34532.0,34529.0,0.51071881]
[1625688488287,2.13347019,34531.0,34529.0,0.51071881]
[1625688488432,2.14709138,34531.0,34529.0,0.51071881]
[1625688488583,2.13343392,34530.0,34529.0,0.51071881]
[1625688488739,2.14705505,34530.0,34529.0,0.51071881]
[1625688489784,2.14705505,34530.0,34529.0,0.34047681]
[1625688490242,2.14705505,34530.0,34529.0,0.51069018]
[1625688493017,2.14705505,34530.0,34529.0,0.34047681]
[1625688493242,2.14705505,34530.0,34527.0,1.2615735]
[1625688493538,2.13384038,34528.0,34527.0,1.2615735]
[1625688493836,2.14746114,34528.0,34527.0,1.2615735]
[1625688493986,2.38803658,34528.0,34527.0,1.2615735]
[1625688495787,2.38803658,34528.0,34527.0,0.24057544]
[1625688497223,2.14746114,34528.0,34526.0,1.02186945]
[1625688497371,1.148436,34527.0,34526.0,1.02186945]
[1625688497514,2.14645418,34527.0,34526.0,1.02186945]
[1625688497665,0.99801818,34527.0,34526.0,1.02186945]
[1625688497814,1.20972818,34527.0,34526.0,1.02186945]
[1625688497968,2.35801627,34527.0,34526.0,1.02186945]
[1625688498125,2.35801627,34527.0,34526.0,0.001]
[1625688498264,2.35801627,34527.0,34526.0,0.48115088]
[1625688503744,2.35801627,34527.0,34526.0,0.82128874]
[1625688504195,2.35801627,34527.0,34526.0,0.48115088]
[1625688504871,2.35801627,34527.0,34526.0,0.82127597]
[1625688507200,2.35801627,34527.0,34526.0,0.99131341]
[1625688509680,2.39214782,34527.0,34526.0,0.99131341]
[1625688509824,3.04815228,34527.0,34526.0,0.99131341]